fUSD/lending_fUSD_20251217
["ID","MTS","AMOUNT","RATE_DAILY","PERIOD"]
[398876768,1765950651403,-170.64217485,0.00018629,2]
[398876769,1765950651417,-217.89258715,0.00018629,2]
[398876770,1765950651431,-150.0,0.0001863,2]
[398876771,1765950651445,-151.1392532,0.0001863,2]
[398876772,1765950651460,-500.0,0.0001863,2]
[398876773,1765950651474,-150.0,0.0001863,2]
[398876774,1765950651489,-500.0,0.0001863,2]
[398876775,1765950651503,-150.0,0.0001863,2]
[398876776,1765950651517,-600.0,0.0001863,2]
[398876777,1765950651532,-150.0,0.0001863,2]
[398876778,1765950651546,-500.0,0.0001863,2]
[398876779,1765950651561,-500.0,0.0001863,2]
[398876780,1765950651575,-150.0,0.0001863,2]
[398876781,1765950651590,-500.0,0.0001863,2]
[398876782,1765950651604,-150.0,0.0001863,2]
[398876783,1765950651618,-150.0,0.0001863,2]
[398876784,1765950651632,-151.6960192,0.0001863,2]
[398876785,1765950651646,-500.0,0.0001863,2]
[398876786,1765950651661,-150.0,0.0001863,2]
[398876787,1765950651676,-150.0,0.0001863,2]
[398876788,1765950651691,-626.0,0.0001863,2]
[398876789,1765950651706,-500.0,0.0001863,2]
[398876790,1765950651720,-500.0,0.0001863,2]
[398876791,1765950651734,-480.0,0.0001863,2]
[398876792,1765950651748,-2715.0,0.0001863,2]
[398876793,1765950651762,-150.0,0.0001863,2]
[398876794,1765950651777,-581.99385814,0.0001863,2]
[398876795,1765950651792,-527.0,0.0001863,2]
[398876796,1765950651806,-500.0,0.0001863,2]
[398876797,1765950651821,-600.0,0.0001863,2]
[398876798,1765950651837,-151.0,0.0001867,2]
[398876799,1765950651851,-807.59,0.00018672,2]
[398876800,1765950651865,-807.59,0.00018672,2]
[398876801,1765950651880,-807.59,0.00018672,2]
[398876802,1765950651894,-807.59,0.00018672,2]
[398876803,1765950651907,-807.70478548,0.00018672,2]
[398876804,1765950651920,-200.0,0.00018672,2]
[398876805,1765950651934,-152.0,0.00018672,3]
[398876806,1765950651949,-5553.09,0.00018673,2]
[398876807,1765950651962,-500.0,0.00018673,2]
[398876808,1765950651977,-500.0,0.00018673,2]
[398876809,1765950651991,-612.0,0.00018673,2]
[398876810,1765950652005,-3453.0,0.00018673,2]
[398876811,1765950652019,-1325.0,0.00018673,2]
[398876812,1765950652034,-1630.761,0.00018673,2]
[398876813,1765950652047,-1261.0,0.00018673,2]
[398876814,1765950652062,-564.0,0.00018673,2]
[398876815,1765950652076,-911.0,0.00018673,2]
[398876816,1765950652091,-2427.0,0.00018673,2]
[398876817,1765950652105,-6524.0,0.00018673,2]
[398876818,1765950652120,-563.0,0.00018673,2]
[398876819,1765950652135,-200.0,0.0001869,2]
[398876820,1765950652154,-253.0,0.00018751,2]
[398876821,1765950652168,-1000.0,0.0001876,2]
[398876822,1765950652183,-150.0,0.00018767,2]
[398876823,1765950652197,-500.0,0.00018767,2]
[398876824,1765950652213,-150.0,0.00018767,2]
[398876825,1765950652229,-171.10835476,0.00018767,2]
[398876826,1765950652243,-150.0,0.00018767,2]
[398876827,1765950652257,-200.0,0.00018767,2]
[398876828,1765950652272,-500.0,0.00018767,2]
[398876829,1765950652286,-454.2545868,0.00018767,2]
[398876830,1765950652301,-150.0,0.00018767,2]
[398876831,1765950652316,-500.0,0.00018767,2]
[398876832,1765950652331,-152.76526931,0.00018767,2]
[398876833,1765950652345,-150.0,0.00018767,2]
[398876834,1765950652358,-500.0,0.00018767,2]
[398876835,1765950652373,-153.23943742,0.00018767,2]
[398876836,1765950652387,-150.0,0.00018767,2]
[398876837,1765950652401,-626.0,0.00018767,2]
[398876838,1765950652414,-500.0,0.00018767,2]
[398876839,1765950652429,-366.3844287,0.00018767,2]
[398876840,1765950652442,-480.0,0.00018767,2]
[398876841,1765950652455,-2715.0,0.00018767,2]
[398876842,1765950652469,-150.0,0.00018767,2]
[398876843,1765950652482,-527.0,0.00018767,2]
[398876844,1765950652496,-500.0,0.00018767,2]
[398876845,1765950652509,-481.46730423,0.000188,3]
[398876846,1765950652522,-481.46730423,0.000188,7]
[398876847,1765950652536,-617.40005154,0.000188,2]
[398876848,1765950652550,-1234.0,0.000188,2]
[398876849,1765950652563,-1023.0,0.00018802,2]
[398876850,1765950652577,-17104.3327604,0.00018807,2]
[398876851,1765950652589,-17636.9029037,0.00018807,2]
[398876852,1765950652602,-5553.09,0.00018823,2]
[398876853,1765950652616,-538.25949619,0.00018824,2]
[398876854,1765950652630,-207.50644938,0.00018824,2]
[398876855,1765950652643,-1000.0,0.00018824,2]
[398876856,1765950652656,-1000.0,0.00018824,2]
[398876857,1765950652669,-1000.0,0.00018824,2]
[398876858,1765950652683,-1000.0,0.00018824,2]
[398876859,1765950652696,-1000.0,0.00018824,2]
[398876860,1765950652710,-1000.0,0.00018824,2]
[398876861,1765950652724,-1000.0,0.00018824,2]
[398876862,1765950652738,-1000.0,0.00018824,2]
[398876863,1765950652751,-1000.0,0.00018824,2]
[398876864,1765950652765,-1000.0,0.00018824,2]
[398876865,1765950652779,-1000.0,0.00018824,2]
[398876866,1765950652792,-1000.0,0.00018824,2]
[398876867,1765950652806,-1000.0,0.00018824,2]
[398876868,1765950652820,-1000.0,0.00018824,2]
[398876869,1765950652833,-1000.0,0.00018824,2]
[398876870,1765950652847,-1000.0,0.00018824,2]
[398876871,1765950652860,-1000.0,0.00018824,2]
[398876872,1765950652873,-1000.0,0.00018824,2]
[398876873,1765950652895,-1000.0,0.00018824,2]
[398876874,1765950652919,-1000.0,0.00018824,2]
[398876875,1765950652932,-1000.0,0.00018824,2]
[398876876,1765950652945,-1000.0,0.00018824,2]
[398876877,1765950652958,-1000.0,0.00018824,2]
[398876878,1765950652972,-1000.0,0.00018824,2]
[398876879,1765950652985,-1000.0,0.00018824,2]
[398876880,1765950652997,-1000.0,0.00018824,2]
[398876881,1765950653011,-1000.0,0.00018824,2]
[398876882,1765950653024,-1030.76237101,0.00018824,2]
[398876883,1765950653037,-1026.31,0.00018824,2]
[398876884,1765950653050,-176.25,0.00018824,2]
[398876885,1765950653064,-5579.22224,0.00018824,2]
[398876886,1765950653076,-1023.0,0.00018825,2]
[398876887,1765950653090,-1023.0,0.00018856,2]
[398876888,1765950653103,-5553.09,0.0001887,2]
[398876889,1765950653115,-1023.0,0.00018897,2]
[398876890,1765950653129,-500.0,0.00018899,2]
[398876891,1765950653143,-500.0,0.00018899,2]
[398876892,1765950653156,-500.0,0.000189,2]
[398876893,1765950653169,-500.0,0.000189,2]
[398876894,1765950653181,-500.0,0.000189,2]
[398876895,1765950653194,-500.0,0.000189,2]
[398876896,1765950653206,-500.0,0.000189,2]
[398876897,1765950653219,-500.0,0.000189,2]
[398876898,1765950653232,-500.0,0.000189,2]
[398876899,1765950653244,-500.0,0.000189,2]
[398876900,1765950653256,-500.0,0.000189,2]
[398876901,1765950653269,-500.0,0.000189,2]
[398876902,1765950653281,-500.0,0.000189,2]
[398876903,1765950653293,-500.0,0.000189,2]
[398876904,1765950653306,-500.0,0.000189,2]
[398876905,1765950653319,-500.0,0.000189,2]
[398876906,1765950653331,-500.0,0.000189,2]
[398876907,1765950653344,-500.0,0.000189,2]
[398876908,1765950653357,-500.0,0.000189,2]
[398876909,1765950653369,-500.0,0.000189,2]
[398876910,1765950653382,-500.0,0.000189,2]
[398876911,1765950653394,-206.23820043,0.000189,2]
[398876912,1765950653406,-426.82294078,0.000189,2]
[398876913,1765950653418,-216.6543499,0.000189,2]
[398876914,1765950653430,-328.14718016,0.000189,2]
[398876915,1765950653443,-328.14718016,0.000189,2]
[398876916,1765950653456,-328.14718016,0.000189,2]
[398876917,1765950653469,-328.14718016,0.000189,2]
[398876918,1765950653482,-328.14718016,0.000189,2]
[398876919,1765950653494,-328.14718016,0.000189,2]
[398876920,1765950653507,-328.14718016,0.000189,2]
[398876921,1765950653519,-328.14718016,0.000189,2]
[398876922,1765950653532,-328.14718016,0.000189,2]
[398876923,1765950653545,-328.14718016,0.000189,2]
[398876924,1765950653559,-328.14718016,0.000189,2]
[398876925,1765950653573,-328.14718016,0.000189,2]
[398876926,1765950653586,-328.14718016,0.000189,2]
[398876927,1765950653599,-328.14718016,0.000189,2]
[398876928,1765950653613,-328.14718016,0.000189,2]
[398876929,1765950653626,-328.14718016,0.000189,2]
[398876930,1765950653640,-328.14718016,0.000189,2]
[398876931,1765950653654,-328.14718016,0.000189,2]
[398876932,1765950653667,-328.14718016,0.000189,2]
[398876933,1765950654284,-328.14,0.000189,2]
[398876934,1765950654319,-167.9532167,0.000189,2]
[398876935,1765950654340,-167.9532167,0.000189,2]
[398876936,1765950654350,-167.9532167,0.000189,2]
[398876937,1765950654359,-167.9532167,0.000189,2]
[398876938,1765950654368,-167.9532167,0.000189,2]
[398876939,1765950654379,-167.9532167,0.000189,2]
[398876940,1765950654389,-167.9532167,0.000189,2]
[398876941,1765950654398,-167.95,0.000189,2]
[398876942,1765950654407,-154.79738865,0.000189,2]
[398876943,1765950654416,-154.79738865,0.000189,2]
[398876944,1765950654425,-154.79738865,0.000189,2]
[398876945,1765950654438,-154.79738865,0.000189,2]
[398876946,1765950654448,-154.79738865,0.000189,2]
[398876947,1765950654458,-154.79738865,0.000189,2]
[398876948,1765950654467,-154.79738865,0.000189,2]
[398876949,1765950654477,-154.79738865,0.000189,2]
[398876950,1765950654486,-154.79738865,0.000189,2]
[398876951,1765950654495,-154.79738865,0.000189,2]
[398876952,1765950654505,-154.79738865,0.000189,2]
[398876953,1765950654514,-154.79738865,0.000189,2]
[398876954,1765950654523,-154.79738865,0.000189,2]
[398876955,1765950654533,-154.79738865,0.000189,2]
[398876956,1765950654543,-154.79738865,0.000189,2]
[398876957,1765950654553,-154.79738865,0.000189,2]
[398876958,1765950654562,-154.79,0.000189,2]
[398876959,1765950654571,-204.50437362,0.000189,2]
[398876960,1765950654581,-151.0,0.00018904,2]
[398876961,1765950654590,-151.0,0.00018904,2]
[398876962,1765950654600,-500.0,0.00018904,2]
[398876963,1765950654611,-150.0,0.00018904,2]
[398876964,1765950654620,-152.49756795,0.00018904,2]
[398876965,1765950654630,-500.0,0.00018904,2]
[398876966,1765950654643,-244.41885163,0.00018904,2]
[398876967,1765950654653,-500.0,0.00018904,2]
[398876968,1765950654663,-150.0,0.00018904,2]
[398876969,1765950654673,-500.0,0.00018904,2]
[398876970,1765950654683,-150.0,0.00018904,2]
[398876971,1765950654693,-626.0,0.00018904,2]
[398876972,1765950654702,-500.0,0.00018904,2]
[398876973,1765950654712,-480.0,0.00018904,2]
[398876974,1765950654721,-2715.0,0.00018904,2]
[398876975,1765950654731,-150.0,0.00018904,2]
[398876976,1765950654740,-527.0,0.00018904,2]
[398876977,1765950654750,-500.0,0.00018904,2]
[398876978,1765950654759,-4000.0,0.00018904,2]
[398876979,1765950654769,-164840.650467,0.00018907,2]
[398876980,1765950654778,-156895.3450889,0.00018907,2]
[398876981,1765950654788,-2989.1693715,0.00018907,2]
[398876982,1765950654798,-70759.7925997,0.00018907,2]
[398876983,1765950654807,-71031.3879383,0.00018907,2]
[398876984,1765950654817,-90394.497246,0.00018907,2]
[398876985,1765950654831,-151.82,0.00018936,2]
[398876986,1765950654841,-194.3998377,0.00018944,2]
[398876987,1765950654851,-4630.4155154,0.00018944,2]
[398876988,1765950654860,-719.1353642,0.00018944,2]
[398876989,1765950654870,-3743.1611097,0.00018944,2]
[398876990,1765950654879,-1000.0,0.00018951,2]
[398876991,1765950654890,-1023.0,0.00018968,2]
[398876992,1765950654901,-571.91267017,0.0001897,2]
[398876993,1765950654911,-1000.0,0.0001897,2]
[398876994,1765950654920,-500.0,0.0001897,2]
[398876995,1765950654931,-1000.0,0.0001897,2]
[398876996,1765950654942,-500.0,0.00018973,2]
[398876997,1765950654952,-150.0,0.00018973,2]
[398876998,1765950654962,-161.0330175,0.00018986,2]
[398876999,1765950654971,-150.00000001,0.00018986,2]
[398877000,1765950654981,-188.97555549,0.00018986,2]
[398877001,1765950654990,-150.0,0.00018986,2]
[398877002,1765950655000,-174.33611087,0.00018986,2]
[398877003,1765950655009,-1184.74838993,0.0001899,2]
[398877004,1765950655019,-3292.0,0.00018996,2]
[398877005,1765950655030,-5553.09,0.00018998,2]
[398877006,1765950655039,-5553.09,0.00018999,2]
[398877007,1765950655049,-5553.09,0.00018999,2]
[398877008,1765950655058,-5553.09,0.00018999,2]
[398877009,1765950655067,-5553.09,0.00018999,2]
[398877010,1765950655076,-5553.09,0.00018999,2]
[398877011,1765950655087,-5553.09,0.00018999,2]
[398877012,1765950655096,-5553.09,0.00018999,2]
[398877013,1765950655106,-5553.09,0.00018999,2]
[398877014,1765950655115,-5553.09,0.00018999,2]
[398877015,1765950655125,-5553.09,0.00018999,2]
[398877016,1765950655134,-5553.09,0.00018999,2]
[398877017,1765950655146,-5553.09,0.00018999,2]
[398877018,1765950655155,-5553.09,0.00018999,2]
[398877019,1765950655164,-5553.09,0.00018999,2]
[398877020,1765950655174,-5553.09,0.00018999,2]
[398877021,1765950655183,-5553.09090234,0.00018999,2]
[398877022,1765950655193,-500.0,0.00018999,2]
[398877023,1765950655202,-177.16012156,0.00018999,2]
[398877024,1765950655211,-500.0,0.00018999,2]
[398877025,1765950655223,-500.0,0.00018999,2]
[398877026,1765950655233,-500.0,0.00018999,2]
[398877027,1765950655243,-553.09,0.00018999,2]
[398877028,1765950655252,-1557352.42351352,0.00019,2]
[398877029,1765950655279,-396165.9099782,0.00019,2]
[398877030,1765950655290,-6450.40605885,0.00019,2]
[398877031,1765950655464,-364.873,0.00018356,2]
[398877032,1765950655474,-150.0,0.00018673,2]
[398877033,1765950655484,-20995.43223759,0.00019,2]
[398877034,1765950655496,-306.23900044,0.00019,2]
[398877035,1765950655545,-897.93027432,0.00019,2]
[398877036,1765950655557,-608.052521,0.00019,2]
[398877037,1765950655718,-300.81129169,0.00014663,2]
[398877038,1765950655743,-508.00060831,0.00014663,2]
[398877039,1765950655753,-1008.61740735,0.000159,2]
[398877040,1765950655763,-587.701644,0.00017,2]
[398877041,1765950655772,-404.50707558,0.00017,2]
[398877042,1765950655785,-183.19456842,0.00017,2]
[398877043,1765950655795,-134.81406395,0.00017,2]
[398877055,1765951831345,-686.63,0.00013699,2]
[398877056,1765951831356,-250.0,0.00013986,2]
[398877057,1765951831366,-150.0,0.00014272,2]
[398877058,1765951831376,-1200.0,0.00014272,2]
[398877059,1765951831385,-142.29002269,0.00014273,2]
[398877060,1765951831396,-357.70997731,0.00014273,2]
[398877061,1765951831405,-500.0,0.00014273,2]
[398877062,1765951831415,-500.0,0.00014273,2]
[398877063,1765951831425,-500.0,0.00014273,2]
[398877064,1765951831434,-500.0,0.00014273,2]
[398877065,1765951831444,-500.0,0.00014273,2]
[398877066,1765951831454,-500.0,0.00014273,2]
[398877067,1765951831463,-500.0,0.00014273,2]
[398877068,1765951831472,-333.29250088,0.00014273,2]
[398877069,1765951831481,-500.0,0.00014273,2]
[398877070,1765951831490,-500.0,0.00014273,2]
[398877071,1765951831499,-150.0,0.00014306,2]
[398877072,1765951831508,-1600.0,0.00014311,2]
[398877073,1765951831517,-91.77895356,0.0001437,2]
[398877074,1765951831533,-86.72504644,0.0001437,2]
[398877075,1765951831542,-1069.89209723,0.0001437,2]
[398877076,1765951831561,-1510.30190277,0.0001437,2]
[398877077,1765951831570,-4292.2984,0.00014463,2]
[398877078,1765951831579,-818.59,0.00014543,2]
[398877079,1765951831592,-502.86,0.0001456,2]
[398877080,1765951831601,-8570.61377586,0.00014562,2]
[398877081,1765951831613,-569.22622414,0.00014562,2]
[398877082,1765951831622,-1000.0,0.00014563,2]
[398877083,1765951831632,-1461.53482509,0.00014563,2]
[398877084,1765951831650,-1038.46517491,0.00014563,2]
[398877085,1765951831659,-105.31165992,0.00014654,2]
[398877086,1765951831671,-45.68834008,0.00014654,2]
[398877087,1765951831679,-151.0,0.00014654,2]
[398877088,1765951831688,-151.0,0.00014654,2]
[398877089,1765951831697,-151.0,0.00014654,2]
[398877090,1765951831706,-151.0,0.00014654,2]
[398877091,1765951831715,-151.0,0.00014654,2]
[398877092,1765951831724,-500.0,0.00014654,2]
[398877093,1765951831733,-151.0,0.00014654,2]
[398877094,1765951831742,-200.0,0.00014654,2]
[398877095,1765951831751,-200.0,0.00014654,2]
[398877096,1765951831760,-500.0,0.00014654,2]
[398877097,1765951831769,-151.0,0.00014654,2]
[398877098,1765951831779,-500.0,0.00014654,2]
[398877099,1765951831792,-151.0,0.00014654,2]
[398877100,1765951831801,-71.87147319,0.00014654,2]
[398877101,1765951831812,-300.92044309,0.00014654,2]
[398877102,1765951831824,-127.20808372,0.00014654,2]
[398877103,1765951831835,-151.0,0.00014654,2]
[398877104,1765951831845,-120.63256402,0.00014654,2]
[398877105,1765951837493,-30.36743598,0.00014654,2]
[398877106,1765951837506,-319.06656841,0.00014654,2]
[398877107,1765951837522,-180.93343159,0.00014654,2]
[398877108,1765951837536,-151.0,0.00014654,2]
[398877109,1765951837557,-306.62194218,0.00014654,2]
[398877110,1765951837578,-193.37805782,0.00014654,2]
[398877111,1765951837592,-151.0,0.00014654,2]
[398877112,1765951837604,-508.42497145,0.00014654,2]
[398877113,1765951837618,-151.0,0.00014654,2]
[398877114,1765951837631,-151.0,0.00014654,2]
[398877115,1765951837644,-151.0,0.00014654,2]
[398877116,1765951837657,-151.0,0.00014654,2]
[398877117,1765951837670,-151.0,0.00014654,2]
[398877118,1765951837684,-151.0,0.00014654,2]
[398877119,1765951837697,-151.0,0.00014654,2]
[398877120,1765951837710,-500.0,0.00014654,2]
[398877122,1765951837723,-500.0,0.00014654,2]
[398877124,1765951837736,-500.0,0.00014654,2]
[398877127,1765951837749,-500.0,0.00014654,2]
[398877128,1765951837761,-500.0,0.00014654,2]
[398877129,1765951837773,-500.0,0.00014654,2]
[398877130,1765951837789,-200.0,0.00014654,2]
[398877131,1765951837802,-151.0,0.00014654,2]
[398877132,1765951837814,-151.0,0.00014654,2]
[398877133,1765951837828,-151.0,0.00014654,2]
[398877134,1765951837841,-151.0,0.00014654,2]
[398877135,1765951837854,-151.0,0.00014654,2]
[398877136,1765951837870,-151.0,0.00014654,2]
[398877137,1765951837884,-151.0,0.00014654,2]
[398877138,1765951837898,-151.0,0.00014654,2]
[398877139,1765951837912,-151.0,0.00014654,2]
[398877140,1765951837925,-151.0,0.00014654,2]
[398877141,1765951837937,-151.0,0.00014654,2]
[398877142,1765951837950,-151.0,0.00014654,2]
[398877143,1765951837963,-2139.38357976,0.00014662,2]
[398877144,1765951837977,-4162.89415761,0.00014662,2]
[398877145,1765951837990,-1374.83233114,0.00014762,2]
[398877146,1765951838004,-449.09555582,0.00014762,2]
[398877147,1765951838017,-500.0,0.00014862,2]
[398877149,1765951838031,-500.0,0.00014862,2]
[398877152,1765951838045,-504.39679474,0.00014862,2]
[398877154,1765951838058,-268.0,0.00014868,2]
[398877156,1765951838072,-1852.42,0.0001488,2]
[398877159,1765951838087,-257.51449002,0.00015017,2]
[398877162,1765951838100,-242.0,0.00015059,2]
[398877164,1765951838114,-250.0,0.00015068,2]
[398877166,1765951838127,-250.0,0.00015068,2]
[398877169,1765951838141,-187.10375317,0.00015073,2]
[398877171,1765951838154,-500.0,0.00015073,2]
[398877174,1765951838168,-4162.89415758,0.00015133,2]
[398877176,1765951838181,-200.0,0.00015202,2]
[398877179,1765951838195,-1374.83233107,0.00015222,2]
[398877180,1765951838208,-255.0,0.00015399,2]
[398877181,1765951838222,-4162.89415758,0.00015604,2]
[398877182,1765951838234,-1000.0,0.00015621,2]
[398877183,1765951838248,-1374.83233107,0.00015682,2]
[398877184,1765951838262,-1680.0,0.00015699,2]
[398877185,1765951838276,-301.14144576,0.0001575,2]
[398877186,1765951838289,-4162.89415758,0.00016075,2]
[398877187,1765951838303,-1600.0,0.00016099,2]
[398877188,1765951838316,-20008.45,0.00016116,2]
[398877189,1765951838330,-1433.96,0.00016116,2]
[398877190,1765951838343,-1374.83233107,0.00016141,2]
[398877191,1765951838357,-415.23028169,0.00016168,2]
[398877192,1765951838371,-1000.0,0.00016385,2]
[398877193,1765951838384,-500.0,0.00016438,2]
[398877194,1765951838397,-500.0,0.00016438,2]
[398877195,1765951838410,-6230.40191806,0.00016438,2]
[398877196,1765951838427,-4071.55773437,0.00016438,2]
[398877197,1765951838443,-400.0,0.00016438,2]
[398877198,1765951838460,-4790.18034757,0.00016438,2]
[398877199,1765951838473,-600.0,0.00016438,2]
[398877200,1765951838486,-1379.28434898,0.00016438,2]
[398877201,1765951838507,-4602.15565102,0.00016438,2]
[398877202,1765951838520,-481.46730423,0.00016447,2]
[398877203,1765951838533,-273.54277402,0.00016486,2]
[398877204,1765951838546,-153.0,0.00016486,2]
[398877205,1765951838559,-153.0,0.00016486,2]
[398877206,1765951838571,-153.0,0.00016486,2]
[398877207,1765951838585,-154.0,0.00016486,2]
[398877208,1765951838597,-154.0,0.00016486,2]
[398877209,1765951838610,-154.0,0.00016486,2]
[398877210,1765951838623,-154.0,0.00016486,2]
[398877211,1765951838635,-154.0,0.00016486,2]
[398877212,1765951838648,-4099.79,0.00016526,2]
[398877213,1765951838661,-4162.89415758,0.00016546,2]
[398877214,1765951838673,-1374.83233107,0.00016601,2]
[398877215,1765951838686,-433.0,0.00016612,2]
[398877216,1765951838699,-152.0,0.00016737,2]
[398877217,1765951838713,-152.0,0.00016737,2]
[398877218,1765951838725,-152.0,0.00016737,2]
[398877219,1765951838738,-152.0,0.00016737,2]
[398877220,1765951838751,-152.0,0.00016737,2]
[398877221,1765951838764,-152.0,0.00016737,2]
[398877222,1765951838776,-152.0,0.00016737,2]
[398877223,1765951838792,-152.0,0.00016737,2]
[398877224,1765951838805,-152.0,0.00016737,2]
[398877225,1765951838818,-154.18394056,0.00016737,2]
[398877226,1765951838831,-152.0,0.00016737,2]
[398877227,1765951838845,-152.0,0.00016737,2]
[398877228,1765951838857,-154.0,0.00016737,2]
[398877229,1765951838872,-154.0,0.00016737,2]
[398877230,1765951838884,-154.0,0.00016737,2]
[398877231,1765951838897,-154.0,0.00016737,2]
[398877232,1765951838910,-154.0,0.00016737,2]
[398877233,1765951838924,-154.0,0.00016737,2]
[398877234,1765951838937,-154.0,0.00016737,2]
[398877235,1765951838950,-154.0,0.00016737,2]
[398877236,1765951838964,-154.0,0.00016737,2]
[398877237,1765951838976,-161.02697292,0.00016737,2]
[398877238,1765951838989,-154.0,0.00016737,2]
[398877239,1765951839003,-153.0,0.00016737,2]
[398877240,1765951839024,-153.0,0.00016737,2]
[398877241,1765951839039,-153.0,0.00016737,2]
[398877242,1765951839054,-153.0,0.00016737,2]
[398877243,1765951839068,-200.0,0.00016764,2]
[398877244,1765951839082,-566.78,0.00016986,2]
[398877245,1765951839097,-600.0,0.00016986,2]
[398877246,1765951839111,-250.0,0.00017,2]
[398877247,1765951839124,-4162.89415758,0.00017016,2]
[398877248,1765951839138,-1374.83233107,0.00017061,2]
[398877249,1765951839151,-461.0,0.00017123,2]
[398877250,1765951839164,-200.0,0.00017184,2]
[398877251,1765951839177,-207.4,0.00017184,2]
[398877252,1765951839190,-215.0738,0.00017184,2]
[398877253,1765951839203,-223.0315306,0.00017184,2]
[398877254,1765951839215,-300.53131453,0.00017184,2]
[398877255,1765951839228,-1000.0,0.00017184,2]
[398877256,1765951839241,-367.82577868,0.00017184,2]
[398877257,1765951839254,-1234.0,0.00017184,2]
[398877258,1765951839266,-1000.0,0.00017184,2]
[398877259,1765951839280,-1000.0,0.00017184,2]
[398877260,1765951839292,-1000.0,0.00017184,2]
[398877261,1765951839305,-1000.0,0.00017184,2]
[398877262,1765951839317,-553.64373807,0.00017184,2]
[398877263,1765951839330,-1000.0,0.00017184,2]
[398877264,1765951839344,-1000.0,0.00017184,2]
[398877265,1765951839357,-1000.0,0.00017184,2]
[398877266,1765951839369,-151.0,0.00017184,2]
[398877267,1765951839381,-1000.0,0.00017184,2]
[398877268,1765951839394,-1000.0,0.00017184,2]
[398877269,1765951839406,-1000.0,0.00017184,2]
[398877270,1765951839418,-1000.0,0.00017184,2]
[398877271,1765951839429,-300.0,0.00017184,2]
[398877272,1765951839441,-250.0,0.00017184,2]
[398877273,1765951839452,-250.0,0.00017184,2]
[398877274,1765951839463,-250.0,0.00017184,2]
[398877275,1765951839475,-250.0,0.00017184,2]
[398877276,1765951839487,-1500.0,0.00017184,2]
[398877277,1765951839498,-250.0,0.00017184,2]
[398877279,1765951839510,-1500.0,0.00017184,2]
[398877280,1765951839521,-250.0,0.00017184,2]
[398877281,1765951839533,-1500.0,0.00017184,2]
[398877282,1765951839544,-250.0,0.00017184,2]
[398877283,1765951839556,-311.1,0.00017184,2]
[398877284,1765951839566,-1500.0,0.00017184,2]
[398877285,1765951839578,-250.0,0.00017184,2]
[398877286,1765951839591,-151.0,0.00017184,2]
[398877287,1765951839602,-1500.0,0.00017184,2]
[398877288,1765951839613,-250.0,0.00017184,2]
[398877289,1765951839625,-1500.0,0.00017184,2]
[398877290,1765951839636,-1500.0,0.00017184,2]
[398877291,1765951839648,-250.0,0.00017184,2]
[398877292,1765951839659,-1500.0,0.00017184,2]
[398877293,1765951839670,-250.0,0.00017184,2]
[398877294,1765951839681,-1500.0,0.00017184,2]
[398877295,1765951839694,-250.0,0.00017184,2]
[398877296,1765951839705,-500.0,0.00017184,2]
[398877297,1765951839717,-1500.0,0.00017184,2]
[398877298,1765951839730,-500.0,0.00017184,2]
[398877299,1765951839742,-460.65198152,0.00017184,2]
[398877300,1765951839753,-500.0,0.00017184,2]
[398877301,1765951839764,-500.0,0.00017184,2]
[398877302,1765951839776,-500.0,0.00017184,2]